{"text_format":"2","workbook":"xlsx","n_sheets":3,"sheets":["Лист1","Лист2","Лист3"],"not_rendered":{"charts":0,"images":0,"macros":0,"external_links":0,"defined_names":0,"comments":0,"pivot_tables":0},"unopened":[],"bounds":{"document_bytes":16777216,"sheet_cells":100000,"run_cost":"one","rows_first":2000,"rows_last":500,"rows_between":2000,"halvings":0,"cell_chars":16384,"cell_head_chars":4096},"cells_cut":0,"cells_raw":0,"read":"whole","date_system":"1900"}

{"sheet":"Лист1","index":0,"n_rows":13,"n_cols":30,"rows_kept":13,"cut":false,"hidden":false,"merged":[[3,29,4,29],[3,18,4,19],[3,21,4,22],[3,3,4,4],[3,7,4,8],[3,5,4,6],[3,15,4,16],[3,14,4,14],[3,10,4,11],[3,12,4,13],[3,17,4,17],[0,0,0,20],[1,0,1,20],[2,0,2,20],[3,23,4,24],[3,26,4,27]]}
["Отчет о результатах мониторинга качества финансового менеджмента,"]
["осуществляемого главными администраторами средств районного бюджета"]
["Шарангского муниципального  района на 1 октября 2017 года"]
["№","Наименование главного администратора средств районного бюджета","КВСР","1.7.1  Качество планирования расходов: сумма положительных внесенных изменений в бюджетную роспись в связи с уточнением ассигнований по решению Земского собрания Шарангского района о районном бюджете",null,"1.7.2  Качество планирования расходов: сумма отрицательных внесенных изменений в бюджетную роспись в связи с уточнением ассигнований по решению Земского собрания Шарангского района о районном бюджете",null,"1.8.  Качество планирования расходов: сумма внесенных положительных изменений в бюджетную роспись в связи с передвижками между кодами бюджетной классификации",null,"1. Финансовое планирование","2.5. Качество прогнозирования кассовых расходов, кроме муниципальных программ",null,"2.6. Качество прогнозирования кассовых расходов по муниципальным программам",null,"2.7. Качество исполнения расходов: наличие просрочен - ной кредиторс-кой задолжен-ности","2.8. Уровень подготовки платежных документов",null,"Наименование главного администратора средств районного бюджета","2.9. Уровень  использования субсидий бюджетными  и автономными учреждениями, предоставленных на  выполнение муниципальных заданий",null,"2.Исполнение бюджета в части расходов","3.2.  Полнота зачисления   платежей в районный бюджет по главному администра -тору доходов районного бюджета, объем невыясненных поступлений",null,"3.3. Отклонение кассового исполнения по доходам от прогноза по главному администратору доходов районного бюджета",null,"3.Исполнение бюджета в части доходов","4.5.Коэффициент сложности бюджетных ассигнований",null,"4. Учет и отчетность","ВСЕГО"]
["п\\п"]
[null,null,null,"%","баллы","%","баллы","%","баллы","баллы","%","баллы","%","баллы","баллы","%","баллы",null,"%","баллы","баллы","%","баллы","%","баллы","баллы","%","баллы","баллы","Количество баллов"]
[null,"1 группа",{"$nulls":15},"1 группа"]
[1,"Районный отдел образования","074",99.2,3,100,3,99.6,2,{"$f":"SUM(E8+G8+I8)","v":8},0,3,91,2,10,96.9,2,"Районный отдел образования",92.3,1,{"$f":"SUM(L8+N8+O8+Q8+T8)","v":18},"-",5,"-",0,{"$f":"SUM(W8+Y8)","v":5},943.2,3,{"$f":"SUM(AB8)","v":3},{"$f":"SUM(J8+U8+Z8+AC8)","v":34}]
[2,"Отдел культуры","057",99,2,99.9,2,100,3,{"$f":"SUM(E9+G9+I9)","v":7},99.5,2,93.9,3,10,99.5,3,"Отдел культуры",95.6,2,{"$f":"SUM(L9+N9+O9+Q9+T9)","v":20},"-",5,"-",0,{"$f":"SUM(W9+Y9)","v":5},927.6,2,{"$f":"SUM(AB9)","v":2},{"$f":"SUM(J9+U9+Z9+AC9)","v":34}]
[3,"Администрация",487,95.9,1,99.2,1,96.8,1,{"$f":"SUM(E10+G10+I10)","v":3},88.9,1,90.6,1,10,96.7,1,"Администрация",97.5,3,{"$f":"SUM(L10+N10+O10+Q10+T10)","v":16},"-",5,-55.24,0,{"$f":"SUM(W10+Y10)","v":5},55.6,1,{"$f":"SUM(AB10)","v":1},{"$f":"SUM(J10+U10+Z10+AC10)","v":25}]
[null,"2 группа",{"$nulls":15},"2 группа"]
[2,"Управление сельского хозяйства","082",100,2,100,2,99.9,1,5,0,2,78.2,1,10,98.4,1,"Управление сельского хозяйства",0,null,{"$f":"SUM(L12+N12+O12+Q12+T12)","v":14},"-",5,"-",0,5,80.3,2,2,{"$f":"SUM(J12+U12+Z12+AC12)","v":26}]
[3,"Финансовое управление","001",80.5,1,90,1,100,2,4,100,1,97.7,2,10,99.3,2,"Финансовое управление",0,null,{"$f":"SUM(L13+N13+O13+Q13+T13)","v":15},"-",5,"-",0,5,53.2,1,1,{"$f":"SUM(J13+U13+Z13+AC13)","v":25}]

{"sheet":"Лист2","index":1,"n_rows":0,"n_cols":0,"rows_kept":0,"cut":false,"hidden":false,"merged":[]}

{"sheet":"Лист3","index":2,"n_rows":0,"n_cols":0,"rows_kept":0,"cut":false,"hidden":false,"merged":[]}